[Event "GER-chT Youth Countries 2020"]
[Site "Berlin"]
[Date "2020.09.30"]
[Round "2"]
[White "Nguyen, Huy Dat"]
[Black "Weidenhoefer, Max"]
[Result "1-0"]
[ECO "B19"]
[WhiteElo "2166"]
[BlackElo "1897"]
[Annotator "ChessBase"]
[PlyCount "87"]
[EventDate "2020.09.30"]
[EventType "team-tourn"]
[EventRounds "7"]
[EventCountry "GER"]
[SourceTitle "playchess.com"]
[Source "ChessBase"]
[SourceQuality "1"]
[WhiteTeam "Thüringen"]
[BlackTeam "Bremen"]
[WhiteTeamCountry "GER"]
[BlackTeamCountry "GER"]
[TimeControl "30/5400+30:0"]

1. e4 {[%emt 0:00:00]} c6 {[%emt 0:00:00]} 2. d4 {[%emt 0:00:00]} d5 {[%emt 0:00:00]} 3. Nc3 {[%emt 0:00:00]} dxe4 {[%emt 0:00:00]} 4. Nxe4 {[%emt 0:00:05]} Bf5 {[%emt 0:00:00]} 5. Ng3 {[%emt 0:00:18]} Bg6 {[%emt 0:00:00]} 6. h4 {[%emt 0:00:10]} h6 {[%emt 0:00:03]} 7. Nf3 {[%emt 0:00:11]} Nd7 {[%emt 0:00:05]} 8. h5 {[%emt 0:00:11]} Bh7 {[%emt 0:00:05]} 9. Bd3 {[%emt 0:00:15]} Bxd3 {[%emt 0:00:06]} 10. Qxd3 {[%emt 0:00:03]} e6 {[%emt 0:00:11]} 11. Bd2 {[%emt 0:00:25]} Ngf6 {[%emt 0:00:19]} 12. O-O-O {[%emt 0:00:56]} Qc7 {[%emt 0:00:11]} 13. Ne4 {[%emt 0:03:37]} Nxe4 {[%emt 0:00:07]} 14. Qxe4 {[%emt 0:00:04]} Nf6 {[%emt 0:00:15]} 15. Qe2 {[%emt 0:00:23]} O-O-O {[%emt 0:00:19]} 16. Kb1 {[%emt 0:03:11]} Kb8 {[%emt 0:04:52]} 17. c4 {[%emt 0:05:02]} Bd6 {[%emt 0:06:43]} 18. Ne5 {[%emt 0:02:39]} Bxe5 {[%emt 0:13:42]} 19. dxe5 {[%emt 0:00:39]} Nd7 {[%emt 0:00:16]} 20. Bc3 {[%emt 0:02:47]} Nb6 {[%emt 0:03:12]} 21. b3 {[%emt 0:05:51]} Rxd1+ {[%emt 0:07:23]} 22. Rxd1 {[%emt 0:00:15]} Rd8 {[%emt 0:00:25]} 23. Kc2 {[%emt 0:02:29]} Kc8 {[%emt 0:03:31]} 24. f4 {[%emt 0:09:34]} c5 {[%emt 0:10:29]} 25. Rxd8+ {[%emt 0:04:30]} Qxd8 {[%emt 0:01:10]} 26. Qg4 {[%emt 0:01:05]} Qg8 {[%emt 0:03:48]} 27. Qf3 {[%emt 0:04:16]} Nd7 {[%emt 0:10:30]} 28. g4 {[%emt 0:08:54]} Nb8 {[%emt 0:05:03]} 29. Qd3 {[%emt 0:04:48]} Qd8 {[%emt 0:03:06]} 30. Qh7 {[%emt 0:10:43]} Qf8 {[%emt 0:02:35]} 31. f5 {[%emt 1:32:19]} Nc6 {[%emt 1:38:41]} 32. f6 {[%emt 0:01:33]} gxf6 {[%emt 0:01:29]} 33. exf6 {[%emt 0:00:25]} Nb4+ {[%emt 0:02:35]} 34. Bxb4 {[%emt 0:02:42]} cxb4 {[%emt 0:00:20]} 35. Qg7 {[%emt 0:00:10]} Qc5 {[%emt 0:08:06]} 36. Qg8+ {[%emt 0:01:05]} Kd7 {[%emt 0:00:44]} 37. Qxf7+ {[%emt 0:00:06]} Kd8 {[%emt 0:00:24]} 38. Qxe6 {[%emt 0:06:50]} Qf2+ {[%emt 0:00:46]} 39. Kd3 {[%emt 0:00:52]} Qf3+ {[%emt 0:00:27]} 40. Kd4 {[%emt 0:01:17]} Qf4+ {[%emt 0:06:07]} 41. Kd5 {[%emt 0:04:58]} Qf3+ {[%emt 0:00:00]} 42. Ke5 {[%emt 0:00:00]} Qe3+ {[%emt 0:00:00]} 43. Kf5 {[%emt 0:00:00]} Qc5+ {[%emt 0:00:00]} 44. Qd5+ {[%emt 0:00:00]} 1-0

[Event "GER-chT Youth Countries 2020"]
[Site "Berlin"]
[Date "2020.09.30"]
[Round "2"]
[White "Hinrichs, Paul"]
[Black "Burian, Simon"]
[Result "1-0"]
[ECO "A57"]
[WhiteElo "2152"]
[BlackElo "2113"]
[Annotator "ChessBase"]
[PlyCount "71"]
[EventDate "2020.09.30"]
[EventType "team-tourn"]
[EventRounds "7"]
[EventCountry "GER"]
[SourceTitle "playchess.com"]
[Source "ChessBase"]
[SourceQuality "1"]
[WhiteTeam "Rheinland-Pfalz"]
[BlackTeam "Sachsen"]
[WhiteTeamCountry "GER"]
[BlackTeamCountry "GER"]
[TimeControl "30/5400+30:0"]

1. d4 {[%emt 0:00:00]} Nf6 {[%emt 0:00:00]} 2. c4 {[%emt 0:00:00]} c5 {[%emt 0:00:00]} 3. d5 {[%emt 0:00:00]} b5 {[%emt 0:00:00]} 4. cxb5 {[%emt 0:00:29]} a6 {[%emt 0:00:00]} 5. b6 {[%emt 0:00:04]} e6 {[%emt 0:00:04]} 6. Nc3 {[%emt 0:00:06]} Nxd5 {[%emt 0:00:09]} 7. Nxd5 {[%emt 0:00:49]} exd5 {[%emt 0:00:04]} 8. Qxd5 {[%emt 0:00:04]} Nc6 {[%emt 0:00:13]} 9. Nf3 {[%emt 0:00:08]} Rb8 {[%emt 0:00:43]} 10. Ne5 {[%emt 0:00:31]} Qf6 {[%emt 0:00:09]} 11. Nxc6 {[%emt 0:00:10]} dxc6 {[%emt 0:00:05]} 12. Qf3 {[%emt 0:00:04]} Be7 {[%emt 0:03:37]} 13. Bd2 {[%emt 0:02:11]} O-O {[%emt 0:05:14]} 14. Bc3 {[%emt 0:00:41]} Qg6 {[%emt 0:03:19]} 15. e4 {[%emt 0:02:53]} Bg4 {[%emt 0:01:16]} 16. Qe3 {[%emt 0:01:31]} Rfe8 {[%emt 0:03:55]} 17. Bd3 {[%emt 0:01:58]} c4 {[%emt 0:02:33]} 18. Bc2 {[%emt 0:01:06]} c5 {[%emt 0:01:03]} 19. O-O {[%emt 0:01:03]} Rxb6 {[%emt 0:01:39]} 20. f4 {[%emt 0:02:22]} Qh5 {[%emt 0:06:12]} 21. h3 {[%emt 0:02:05]} Bd7 {[%emt 0:02:51]} 22. Rad1 {[%emt 0:01:59]} Bc6 {[%emt 0:04:26]} 23. e5 {[%emt 0:03:55]} f5 {[%emt 0:07:16]} 24. Rd2 {[%emt 0:03:17]} Bf8 {[%emt 0:08:50]} 25. Rfd1 {[%emt 0:07:30]} Qf7 {[%emt 0:03:08]} 26. a4 {[%emt 0:05:46]} Rbb8 {[%emt 0:05:35]} 27. a5 {[%emt 0:01:04]} Kh8 {[%emt 0:03:32]} 28. g4 {[%emt 0:02:12]} fxg4 {[%emt 0:01:35]} 29. hxg4 {[%emt 0:00:10]} Kg8 {[%emt 0:03:07]} 30. Rh2 {[%emt 0:03:53]} g6 {[%emt 0:00:38]} 31. f5 {[%emt 1:31:34]} Bg7 {[%emt 1:32:59]} 32. Rxh7 {[%emt 0:02:28]} gxf5 {[%emt 0:01:10]} 33. Bxf5 {[%emt 0:00:44]} Rbd8 {[%emt 0:01:09]} 34. Rxd8 {[%emt 0:00:31]} Rxd8 {[%emt 0:00:12]} 35. e6 {[%emt 0:00:48]} Rd1+ {[%emt 0:00:29]} 36. Kf2 {[%emt 0:00:05]} 1-0

[Event "GER-chT Youth Countries 2020"]
[Site "Berlin"]
[Date "2020.09.30"]
[Round "2"]
[White "Popvasilev, Kaloyan"]
[Black "Chassard, Cedric"]
[Result "1-0"]
[ECO "C48"]
[WhiteElo "2145"]
[BlackElo "1916"]
[Annotator "ChessBase"]
[PlyCount "61"]
[EventDate "2020.09.30"]
[EventType "team-tourn"]
[EventRounds "7"]
[EventCountry "GER"]
[SourceTitle "playchess.com"]
[Source "ChessBase"]
[SourceQuality "1"]
[WhiteTeam "Schleswig-Holstein"]
[BlackTeam "Saarland"]
[WhiteTeamCountry "GER"]
[BlackTeamCountry "GER"]
[TimeControl "30/5400+30:0"]

1. e4 e5 2. Nc3 Nf6 3. Nf3 Nc6 4. Bb5 Bd6 5. a3 O-O 6. d3 Re8 7. Bc4 h6 8. g4 Nh7 9. h4 Nf8 10. g5 h5 11. g6 Nxg6 12. Ng5 Re6 13. Qxh5 Be7 14. Qh7+ Kf8 15. Nxe6+ dxe6 16. h5 Bc5 17. hxg6 Qf6 18. Qh8+ Ke7 19. Qh4 Nd4 20. Qxf6+ Kxf6 21. Kd1 Kxg6 22. Rh8 f5 23. Be3 f4 24. Bxd4 exd4 25. Ne2 e5 26. f3 Be7 27. Kd2 Kf6 28. Rg1 Be6 29. Ra1 {[%emt 0:40:14]} Bc8 {[%emt 0:45:13]} 30. Rg1 {[%emt 0:00:16]} Be6 {[%emt 0:00:06]} 31. Rxa8 {[%emt 1:30:04]} 1-0

[Event "GER-chT Youth Countries 2020"]
[Site "Berlin"]
[Date "2020.09.30"]
[Round "2"]
[White "Gallasch, Jonas"]
[Black "Tiarks, Jann-Christian"]
[Result "1-0"]
[ECO "D36"]
[WhiteElo "2090"]
[BlackElo "2151"]
[Annotator "ChessBase"]
[PlyCount "58"]
[EventDate "2020.09.30"]
[EventType "team-tourn"]
[EventRounds "7"]
[EventCountry "GER"]
[SourceTitle "playchess.com"]
[Source "ChessBase"]
[SourceQuality "1"]
[WhiteTeam "Nordrhein-Westfalen"]
[BlackTeam "Brandenburg"]
[WhiteTeamCountry "GER"]
[BlackTeamCountry "GER"]
[TimeControl "30/5400+30:0"]

1. d4 {[%emt 0:00:00]} d5 {[%emt 0:00:00]} 2. c4 {[%emt 0:00:00]} e6 {[%emt 0:00:20]} 3. Nc3 {[%emt 0:00:00]} c6 {[%emt 0:00:08]} 4. cxd5 {[%emt 0:00:06]} exd5 {[%emt 0:00:09]} 5. Qc2 {[%emt 0:00:05]} Nf6 {[%emt 0:00:40]} 6. Bg5 {[%emt 0:00:07]} Be7 {[%emt 0:00:07]} 7. e3 {[%emt 0:00:10]} O-O {[%emt 0:00:30]} 8. Bd3 {[%emt 0:00:11]} Nbd7 {[%emt 0:00:15]} 9. Nf3 {[%emt 0:00:20]} Re8 {[%emt 0:00:22]} 10. O-O {[%emt 0:00:11]} h6 {[%emt 0:04:56]} 11. Bh4 {[%emt 0:01:48]} Ne4 {[%emt 0:07:16]} 12. Bxe7 {[%emt 0:05:19]} Qxe7 {[%emt 0:00:22]} 13. Rab1 {[%emt 0:01:18]} Ndf6 {[%emt 0:03:48]} 14. b4 {[%emt 0:04:32]} Bf5 {[%emt 0:03:29]} 15. Na4 {[%emt 0:06:51]} a5 {[%emt 0:04:56]} 16. Nb6 {[%emt 0:12:04]} Ra7 {[%emt 0:01:49]} 17. b5 {[%emt 0:02:22]} cxb5 {[%emt 0:03:08]} 18. Rxb5 {[%emt 0:01:44]} Be6 {[%emt 0:05:17]} 19. Ne5 {[%emt 0:07:21]} Ra6 {[%emt 0:03:29]} 20. Rc1 {[%emt 0:19:50]} Nd6 {[%emt 0:03:59]} 21. Rbb1 {[%emt 0:03:50]} Ra7 {[%emt 0:00:47]} 22. Qa4 {[%emt 0:02:48]} Nc8 {[%emt 0:01:58]} 23. Qb5 {[%emt 0:11:30]} Ra6 {[%emt 0:04:42]} 24. Na4 {[%emt 0:04:55]} Nd6 {[%emt 0:00:18]} 25. Qb3 {[%emt 0:02:25]} Raa8 {[%emt 0:01:53]} 26. Nb6 {[%emt 0:00:34]} Rad8 {[%emt 0:01:57]} 27. Qa4 {[%emt 0:00:53]} Bf5 {[%emt 0:01:45]} 28. Bxf5 {[%emt 0:00:56]} Nxf5 {[%emt 0:00:05]} 29. Qxa5 {[%emt 0:00:09]} Ne4 {[%emt 0:04:55]} 1-0

[Event "GER-chT Youth Countries 2020"]
[Site "Berlin"]
[Date "2020.09.30"]
[Round "2"]
[White "Bakiev, Diyor"]
[Black "Sreyas Payyappat"]
[Result "1-0"]
[ECO "C86"]
[WhiteElo "2070"]
[BlackElo "2144"]
[Annotator "ChessBase"]
[PlyCount "52"]
[EventDate "2020.09.30"]
[EventType "team-tourn"]
[EventRounds "7"]
[EventCountry "GER"]
[SourceTitle "playchess.com"]
[Source "ChessBase"]
[SourceQuality "1"]
[WhiteTeam "Hessen"]
[BlackTeam "Niedersachsen"]
[WhiteTeamCountry "GER"]
[BlackTeamCountry "IND"]
[TimeControl "30/5400+30:0"]

1. e4 {[%emt 0:00:00]} e5 {[%emt 0:00:00]} 2. Nf3 {[%emt 0:00:00]} Nc6 {[%emt 0:00:00]} 3. Bb5 {[%emt 0:00:04]} a6 {[%emt 0:00:00]} 4. Ba4 {[%emt 0:00:00]} Nf6 {[%emt 0:00:00]} 5. Qe2 {[%emt 0:00:00]} b5 {[%emt 0:01:11]} 6. Bb3 Be7 {[%emt 0:00:52]} 7. O-O {[%emt 0:00:22]} O-O 8. c3 {[%emt 0:00:03]} d5 {[%emt 0:05:50]} 9. d3 Bg4 {[%emt 0:02:21]} 10. Rd1 {[%emt 0:01:20]} d4 {[%emt 0:05:14]} 11. h3 {[%emt 0:07:34]} Bh5 {[%emt 0:02:17]} 12. Nbd2 {[%emt 0:02:30]} Qd7 {[%emt 0:00:52]} 13. Nf1 {[%emt 0:10:28]} a5 {[%emt 0:02:30]} 14. Ng3 {[%emt 0:02:00]} Bg6 {[%emt 0:00:28]} 15. a4 {[%emt 0:01:39]} b4 {[%emt 0:01:34]} 16. cxd4 {[%emt 0:04:34]} exd4 {[%emt 0:02:15]} 17. Bg5 {[%emt 0:03:13]} Rfe8 {[%emt 0:03:30]} 18. Rac1 Nh5 {[%emt 0:00:08]} 19. Nxh5 {[%emt 0:03:04]} Bxh5 20. Bxe7 Nxe7 {[%emt 0:19:02]} 21. g4 {[%emt 0:04:03]} Bg6 {[%emt 0:00:59]} 22. Qc2 {[%emt 0:01:53]} Qd6 {[%emt 0:16:54]} 23. Qxc7 {[%emt 0:00:40]} Qf6 {[%emt 0:00:44]} 24. Kg2 {[%emt 0:05:50]} h6 {[%emt 0:11:51]} 25. Qe5 {[%emt 0:02:35]} Qa6 {[%emt 0:02:29]} 26. Bc4 {[%emt 0:04:34]} Qb7 {[%emt 0:02:44]} 1-0

[Event "GER-chT Youth Countries 2020"]
[Site "Berlin"]
[Date "2020.09.30"]
[Round "2"]
[White "Jeschke, Jan"]
[Black "Arndt, Magnus"]
[Result "0-1"]
[ECO "B00"]
[WhiteElo "2043"]
[BlackElo "2298"]
[Annotator "ChessBase"]
[PlyCount "32"]
[EventDate "2020.09.30"]
[EventType "team-tourn"]
[EventRounds "7"]
[EventCountry "GER"]
[SourceTitle "playchess.com"]
[Source "ChessBase"]
[SourceQuality "1"]
[WhiteTeam "Saarland"]
[BlackTeam "Schleswig-Holstein"]
[WhiteTeamCountry "GER"]
[BlackTeamCountry "GER"]
[TimeControl "30/5400+30:0"]

1. e4 b6 2. Nc3 Bb7 3. d4 e6 4. Bd3 Nf6 5. Nge2 c5 6. O-O cxd4 7. Nxd4 d6 8. f4 Nbd7 9. e5 dxe5 10. fxe5 Nxe5 11. Bb5+ Ned7 12. Bg5 a6 13. Rxf6 gxf6 14. Nxe6 fxe6 15. Bxf6 Bc5+ 16. Kh1 Rg8 0-1

[Event "GER-chT Youth Countries 2020"]
[Site "Berlin"]
[Date "2020.09.30"]
[Round "2"]
[White "Ermitsch, Magnus"]
[Black "Lange, Jannis"]
[Result "1-0"]
[ECO "B33"]
[WhiteElo "2025"]
[BlackElo "2126"]
[Annotator "ChessBase"]
[PlyCount "48"]
[EventDate "2020.09.30"]
[EventType "team-tourn"]
[EventRounds "7"]
[EventCountry "GER"]
[SourceTitle "playchess.com"]
[Source "ChessBase"]
[SourceQuality "1"]
[WhiteTeam "Berlin"]
[BlackTeam "Mecklenburg-Vorpommern"]
[WhiteTeamCountry "GER"]
[BlackTeamCountry "GER"]
[TimeControl "30/5400+30:0"]

1. e4 {[%emt 0:00:14]} c5 {[%emt 0:00:00]} 2. Nf3 {[%emt 0:01:22]} Nc6 {[%emt 0:00:00]} 3. d4 {[%emt 0:00:16]} cxd4 {[%emt 0:00:00]} 4. Nxd4 {[%emt 0:00:28]} Nf6 {[%emt 0:00:00]} 5. Nc3 {[%emt 0:00:27]} e5 {[%emt 0:00:07]} 6. Ndb5 {[%emt 0:01:02]} d6 {[%emt 0:00:08]} 7. Bg5 {[%emt 0:00:58]} a6 {[%emt 0:00:11]} 8. Na3 {[%emt 0:00:58]} b5 {[%emt 0:00:07]} 9. Nd5 {[%emt 0:00:51]} Be7 {[%emt 0:00:13]} 10. Bxf6 {[%emt 0:01:20]} Bxf6 {[%emt 0:00:08]} 11. c4 {[%emt 0:00:33]} b4 {[%emt 0:01:13]} 12. Nc2 {[%emt 0:01:17]} Bg5 {[%emt 0:07:55]} 13. Qf3 {[%emt 0:01:50]} O-O {[%emt 0:07:57]} 14. h4 {[%emt 0:03:56]} Bh6 {[%emt 0:09:20]} 15. Bd3 {[%emt 0:10:52]} a5 {[%emt 0:01:30]} 16. Rd1 {[%emt 0:06:15]} Be6 {[%emt 0:06:56]} 17. g4 {[%emt 0:05:12]} Bf4 {[%emt 0:02:13]} 18. g5 {[%emt 0:08:53]} Bxd5 {[%emt 0:06:39]} 19. exd5 {[%emt 0:00:40]} Ne7 {[%emt 0:01:41]} 20. c5 {[%emt 0:06:39]} Nc8 {[%emt 0:07:49]} 21. Qe4 {[%emt 0:02:31]} g6 {[%emt 0:01:06]} 22. c6 {[%emt 0:01:32]} Nb6 {[%emt 0:02:03]} 23. Ne3 {[%emt 0:04:35]} Bxe3 {[%emt 0:00:29]} 24. fxe3 {[%emt 0:00:24]} Na4 {[%emt 0:00:37]} 1-0

[Event "GER-chT Youth Countries 2020"]
[Site "Berlin"]
[Date "2020.09.30"]
[Round "2"]
[White "Pikalow, Michael"]
[Black "Hecht, Jonas Christian"]
[Result "1-0"]
[ECO "C87"]
[WhiteElo "2021"]
[BlackElo "1764"]
[Annotator "ChessBase"]
[PlyCount "49"]
[EventDate "2020.09.30"]
[EventType "team-tourn"]
[EventRounds "7"]
[EventCountry "GER"]
[SourceTitle "playchess.com"]
[Source "ChessBase"]
[SourceQuality "1"]
[WhiteTeam "Sachsen-Anhalt"]
[BlackTeam "Baden"]
[WhiteTeamCountry "GER"]
[TimeControl "30/5400+30:0"]

1. e4 e5 2. Nf3 Nc6 3. Bb5 a6 4. Ba4 Nf6 5. O-O d6 6. Re1 Be7 7. d3 O-O 8. c3 b5 9. Bc2 Na5 10. b4 Nc6 11. a4 Bb7 12. Na3 Qd7 13. Bb2 Na7 14. d4 exd4 15. cxd4 bxa4 16. d5 Qg4 17. h3 Qh5 18. Bxa4 c6 19. Rc1 Rac8 20. Qd4 Nb5 21. Bxb5 c5 22. bxc5 dxc5 23. Qd3 axb5 24. Qxb5 Rb8 25. Be5 1-0

[Event "GER-chT Youth Countries 2020"]
[Site "Berlin"]
[Date "2020.09.30"]
[Round "2"]
[White "Nguyen, Ha Thanh"]
[Black "Bildat, Emilia"]
[Result "1/2-1/2"]
[ECO "B35"]
[WhiteElo "2019"]
[BlackElo "1704"]
[Annotator "ChessBase"]
[PlyCount "94"]
[EventDate "2020.09.30"]
[EventType "team-tourn"]
[EventRounds "7"]
[EventCountry "GER"]
[SourceTitle "playchess.com"]
[Source "ChessBase"]
[SourceQuality "1"]
[WhiteTeam "Thüringen"]
[BlackTeam "Bremen"]
[WhiteTeamCountry "GER"]
[BlackTeamCountry "GER"]
[TimeControl "30/5400+30:0"]

1. e4 {[%emt 0:00:00]} c5 {[%emt 0:00:00]} 2. Nf3 {[%emt 0:00:00]} g6 {[%emt 0:00:00]} 3. d4 {[%emt 0:00:10]} cxd4 {[%emt 0:00:02]} 4. Nxd4 {[%emt 0:00:05]} Bg7 {[%emt 0:00:11]} 5. Nc3 {[%emt 0:00:47]} Nc6 {[%emt 0:00:26]} 6. Be3 {[%emt 0:00:47]} Nf6 {[%emt 0:00:59]} 7. Bc4 {[%emt 0:01:09]} O-O {[%emt 0:00:38]} 8. Bb3 {[%emt 0:03:34]} d5 {[%emt 0:04:42]} 9. exd5 {[%emt 0:03:15]} Na5 {[%emt 0:00:48]} 10. Nf3 {[%emt 0:02:35]} Nxb3 {[%emt 0:04:00]} 11. axb3 {[%emt 0:00:17]} b6 {[%emt 0:02:28]} 12. Qd2 {[%emt 0:07:51]} Bb7 {[%emt 0:04:00]} 13. Rd1 {[%emt 0:01:45]} Qc8 {[%emt 0:03:05]} 14. O-O {[%emt 0:11:36]} Rd8 {[%emt 0:01:06]} 15. Bh6 {[%emt 0:07:07]} Bxd5 {[%emt 0:07:23]} 16. Bxg7 {[%emt 0:04:21]} Kxg7 {[%emt 0:00:09]} 17. Nxd5 {[%emt 0:01:54]} Rxd5 {[%emt 0:01:43]} 18. Qe2 {[%emt 0:00:30]} Rxd1 {[%emt 0:02:43]} 19. Rxd1 {[%emt 0:00:06]} Qc7 {[%emt 0:00:23]} 20. Qd3 {[%emt 0:02:11]} e5 {[%emt 0:05:51]} 21. Qc3 {[%emt 0:06:47]} Qxc3 {[%emt 0:03:24]} 22. bxc3 {[%emt 0:00:05]} e4 {[%emt 0:00:15]} 23. Nd4 {[%emt 0:01:58]} a5 {[%emt 0:07:52]} 24. Ra1 {[%emt 0:05:49]} Nd5 {[%emt 0:04:07]} 25. c4 {[%emt 0:00:14]} Nc3 {[%emt 0:00:24]} 26. Kf1 {[%emt 0:00:42]} Rd8 {[%emt 0:01:39]} 27. Ne2 {[%emt 0:05:01]} Nd1 {[%emt 0:06:04]} 28. c5 {[%emt 0:04:33]} bxc5 {[%emt 0:05:02]} 29. Rxa5 {[%emt 0:00:21]} e3 {[%emt 0:07:02]} 30. Rxc5 {[%emt 0:06:27]} exf2 {[%emt 0:05:49]} 31. Nc3 {[%emt 1:35:00]} Ne3+ {[%emt 1:31:33]} 32. Kxf2 {[%emt 0:00:06]} Nxc2 {[%emt 0:00:39]} 33. Nd5 {[%emt 0:06:16]} Nd4 {[%emt 0:01:50]} 34. b4 {[%emt 0:05:22]} Rb8 {[%emt 0:00:48]} 35. Ke3 {[%emt 0:01:05]} Nb5 {[%emt 0:00:48]} 36. Kd3 {[%emt 0:01:06]} f5 {[%emt 0:01:03]} 37. Rc6 {[%emt 0:02:34]} g5 {[%emt 0:01:50]} 38. Rb6 {[%emt 0:00:57]} Rxb6 {[%emt 0:00:21]} 39. Nxb6 {[%emt 0:00:03]} f4 {[%emt 0:01:38]} 40. Nd5 {[%emt 0:00:55]} Kf7 {[%emt 0:04:13]} 41. Kc4 {[%emt 0:00:00]} Nd6+ {[%emt 0:00:00]} 42. Kc5 {[%emt 0:00:00]} Ke6 {[%emt 0:00:00]} 43. h3 {[%emt 0:00:00]} h5 {[%emt 0:00:00]} 44. h4 {[%emt 0:00:00]} Nb7+ {[%emt 0:00:00]} 45. Kd4 {[%emt 0:00:00]} gxh4 {[%emt 0:00:00]} 46. Nxf4+ {[%emt 0:00:00]} Kf5 {[%emt 0:00:00]} 47. Ke3 {[%emt 0:00:00]} Ke5 1/2-1/2

[Event "GER-chT Youth Countries 2020"]
[Site "Berlin"]
[Date "2020.09.30"]
[Round "2"]
[White "Wu, Luka"]
[Black "Post, Hugo"]
[Result "0-1"]
[ECO "B80"]
[WhiteElo "2019"]
[BlackElo "2209"]
[Annotator "ChessBase"]
[PlyCount "32"]
[EventDate "2020.09.30"]
[EventType "team-tourn"]
[EventRounds "7"]
[EventCountry "GER"]
[SourceTitle "playchess.com"]
[Source "ChessBase"]
[SourceQuality "1"]
[WhiteTeam "Baden"]
[BlackTeam "Sachsen-Anhalt"]
[WhiteTeamCountry "GER"]
[BlackTeamCountry "GER"]
[TimeControl "30/5400+30:0"]

1. e4 c5 2. Nf3 d6 3. d4 cxd4 4. Nxd4 Nf6 5. Nc3 e6 6. Be3 a6 7. Be2 Qc7 8. O-O b5 9. a3 Bb7 10. Bd3 Nbd7 11. f4 Nc5 12. Qf3 Be7 13. Rae1 h5 14. Kh1 O-O-O 15. Bg1 h4 16. h3 Rdg8 0-1

[Event "GER-chT Youth Countries 2020"]
[Site "Berlin"]
[Date "2020.09.30"]
[Round "2"]
[White "Bashylina, Luisa"]
[Black "Jacoby, Angelina"]
[Result "1/2-1/2"]
[ECO "B01"]
[WhiteElo "2005"]
[BlackElo "1630"]
[Annotator "ChessBase"]
[PlyCount "95"]
[EventDate "2020.09.30"]
[EventType "team-tourn"]
[EventRounds "7"]
[EventCountry "GER"]
[SourceTitle "playchess.com"]
[Source "ChessBase"]
[SourceQuality "1"]
[WhiteTeam "Nordrhein-Westfalen"]
[BlackTeam "Brandenburg"]
[WhiteTeamCountry "GER"]
[BlackTeamCountry "GER"]
[TimeControl "30/5400+30:0"]

1. e4 {[%emt 0:00:00]} d5 {[%emt 0:00:00]} 2. exd5 {[%emt 0:00:00]} Qxd5 {[%emt 0:00:00]} 3. Nc3 {[%emt 0:00:00]} Qd8 {[%emt 0:00:00]} 4. d4 {[%emt 0:00:25]} Nf6 {[%emt 0:00:08]} 5. Nf3 {[%emt 0:00:14]} Bg4 {[%emt 0:00:14]} 6. g3 {[%emt 0:02:53]} c6 {[%emt 0:02:56]} 7. Bg2 {[%emt 0:00:07]} e6 {[%emt 0:02:10]} 8. O-O {[%emt 0:01:44]} Bd6 {[%emt 0:02:05]} 9. Be3 {[%emt 0:03:55]} Nbd7 {[%emt 0:01:53]} 10. Qd2 {[%emt 0:04:17]} O-O {[%emt 0:05:26]} 11. h3 {[%emt 0:06:25]} Bxf3 {[%emt 0:05:41]} 12. Bxf3 {[%emt 0:00:13]} Nb6 {[%emt 0:02:25]} 13. Qd3 {[%emt 0:06:19]} Nfd5 {[%emt 0:02:01]} 14. Nxd5 {[%emt 0:01:07]} cxd5 {[%emt 0:01:23]} 15. b3 {[%emt 0:06:20]} Rc8 {[%emt 0:06:28]} 16. a4 {[%emt 0:14:14]} Bb4 {[%emt 0:10:48]} 17. a5 {[%emt 0:03:59]} Na8 {[%emt 0:04:27]} 18. c4 {[%emt 0:02:03]} Bxa5 {[%emt 0:08:17]} 19. cxd5 {[%emt 0:05:28]} exd5 {[%emt 0:03:08]} 20. Qf5 {[%emt 0:03:36]} Bc3 {[%emt 0:20:19]} 21. Rxa7 {[%emt 0:05:12]} Qb6 {[%emt 0:00:40]} 22. Ra2 {[%emt 0:03:21]} Bxd4 {[%emt 0:02:10]} 23. Bxd4 {[%emt 0:01:04]} Qxd4 {[%emt 0:00:07]} 24. Bxd5 {[%emt 0:00:49]} Rc7 {[%emt 0:09:40]} 25. Qf3 {[%emt 0:05:26]} Nb6 {[%emt 0:05:37]} 26. Bxb7 {[%emt 0:08:41]} Rc3 {[%emt 0:00:13]} 27. Qg2 {[%emt 0:06:37]} Rxb3 {[%emt 0:00:17]} 28. Raa1 {[%emt 0:01:21]} Rd3 {[%emt 0:01:28]} 29. Ba6 {[%emt 0:03:29]} Rd2 {[%emt 0:00:46]} 30. Rab1 {[%emt 0:00:36]} Nc4 {[%emt 0:00:50]} 31. Rb4 {[%emt 1:31:05]} Rc2 {[%emt 1:30:46]} 32. Qb7 {[%emt 0:02:32]} Qc5 {[%emt 0:01:05]} 33. Rb5 {[%emt 0:00:36]} Qd4 {[%emt 0:01:24]} 34. Rb4 {[%emt 0:00:32]} Qc5 {[%emt 0:00:09]} 35. Rb5 {[%emt 0:00:33]} Qd4 {[%emt 0:00:06]} 36. Rd5 {[%emt 0:00:24]} Qb6 {[%emt 0:00:31]} 37. Rd7 {[%emt 0:01:19]} Qxb7 {[%emt 0:00:29]} 38. Bxb7 {[%emt 0:00:09]} Ne5 {[%emt 0:01:20]} 39. Re7 {[%emt 0:00:10]} Ng6 {[%emt 0:00:28]} 40. Re3 {[%emt 0:00:46]} Rc7 {[%emt 0:00:13]} 41. Bg2 {[%emt 0:00:00]} Rd8 {[%emt 0:00:00]} 42. Rfe1 {[%emt 0:00:00]} Kf8 {[%emt 0:00:00]} 43. h4 {[%emt 0:00:00]} Ne7 {[%emt 0:00:00]} 44. Be4 {[%emt 0:00:00]} h6 {[%emt 0:00:00]} 45. g4 {[%emt 0:00:00]} Rcd7 {[%emt 0:00:00]} 46. g5 {[%emt 0:00:00]} hxg5 47. hxg5 Rd1 {[%emt 0:00:00]} 48. Kg2 {[%emt 0:00:00]} 1/2-1/2

[Event "GER-chT Youth Countries 2020"]
[Site "Berlin"]
[Date "2020.09.30"]
[Round "2"]
[White "Bardorz, Jana"]
[Black "Kadach, Maria"]
[Result "1-0"]
[ECO "B13"]
[WhiteElo "1960"]
[BlackElo "1539"]
[Annotator "ChessBase"]
[PlyCount "41"]
[EventDate "2020.09.30"]
[EventType "team-tourn"]
[EventRounds "7"]
[EventCountry "GER"]
[SourceTitle "playchess.com"]
[Source "ChessBase"]
[SourceQuality "1"]
[WhiteTeam "Bayern"]
[BlackTeam "Württemberg"]
[WhiteTeamCountry "GER"]
[BlackTeamCountry "GER"]
[TimeControl "30/5400+30:0"]

1. e4 {[%emt 0:00:00]} c6 {[%emt 0:00:00]} 2. d4 {[%emt 0:00:00]} d5 {[%emt 0:00:00]} 3. exd5 {[%emt 0:00:00]} cxd5 {[%emt 0:00:06]} 4. Bd3 {[%emt 0:00:08]} Nc6 {[%emt 0:00:46]} 5. c3 {[%emt 0:00:05]} Qc7 {[%emt 0:00:24]} 6. Ne2 {[%emt 0:00:42]} e6 {[%emt 0:02:19]} 7. Bf4 {[%emt 0:02:28]} Bd6 {[%emt 0:00:16]} 8. Bxd6 {[%emt 0:01:04]} Qxd6 {[%emt 0:00:04]} 9. O-O {[%emt 0:03:29]} Nf6 {[%emt 0:00:17]} 10. Nd2 {[%emt 0:02:45]} Bd7 {[%emt 0:00:12]} 11. f4 {[%emt 0:04:02]} O-O {[%emt 0:06:00]} 12. Nf3 {[%emt 0:02:48]} Rfc8 {[%emt 0:02:41]} 13. Ne5 {[%emt 0:03:31]} Na5 {[%emt 0:01:14]} 14. Ng3 {[%emt 0:05:55]} b5 {[%emt 0:01:40]} 15. Nh5 {[%emt 0:02:19]} Nxh5 {[%emt 0:10:41]} 16. Bxh7+ {[%emt 0:01:48]} Kxh7 {[%emt 0:03:46]} 17. Qxh5+ {[%emt 0:00:09]} Kg8 {[%emt 0:00:09]} 18. Qxf7+ {[%emt 0:00:08]} Kh8 {[%emt 0:00:54]} 19. Rf3 {[%emt 0:00:36]} Qxe5 {[%emt 0:04:08]} 20. Rh3+ {[%emt 0:00:32]} Qh5 {[%emt 0:00:08]} 21. Rxh5# 1-0